fUSD/lending_fUSD_20240113
["ID","MTS","AMOUNT","RATE_DAILY","PERIOD"]
[311488566,1705162277668,-3124.27,0.00022696,2]
[311488567,1705162277677,-500.0,0.00022696,2]
[311488568,1705162277686,-500.0,0.00022696,2]
[311488569,1705162277696,-250.53465371,0.00022696,2]
[311488570,1705162277705,-500.0,0.00022696,2]
[311488571,1705162277714,-500.0,0.00022696,2]
[311488572,1705162277723,-500.02758432,0.00022696,2]
[311488573,1705162277733,-500.0,0.00022696,2]
[311488574,1705162277743,-500.0,0.00022696,2]
[311488575,1705162277760,-1025.77,0.00022696,2]
[311488576,1705162277772,-500.0,0.00022696,2]
[311488577,1705162277781,-500.0,0.00022696,2]
[311488578,1705162277790,-500.0,0.00022696,2]
[311488579,1705162277800,-500.0,0.00022696,2]
[311488580,1705162277809,-500.0,0.00022696,2]
[311488581,1705162277818,-1737.56,0.00022696,2]
[311488582,1705162277827,-500.0,0.00022696,2]
[311488583,1705162277836,-500.0,0.00022696,2]
[311488584,1705162277846,-500.0,0.00022696,2]
[311488585,1705162277855,-500.0,0.00022696,2]
[311488586,1705162277864,-500.0,0.00022696,2]
[311488587,1705162277873,-500.0,0.00022696,2]
[311488588,1705162277882,-500.0,0.00022696,2]
[311488589,1705162277891,-500.0,0.00022696,2]
[311488590,1705162277901,-500.0,0.00022696,2]
[311488591,1705162277909,-639.24,0.00022696,2]
[311488592,1705162277918,-500.0,0.00022696,2]
[311488593,1705162277927,-500.0,0.00022696,2]
[311488594,1705162277936,-500.0,0.00022696,2]
[311488595,1705162277946,-500.0,0.00022696,2]
[311488596,1705162277955,-500.0,0.00022696,2]
[311488597,1705162277964,-869.61,0.00022696,2]
[311488598,1705162277974,-1000.0,0.00022696,2]
[311488599,1705162277984,-500.0,0.00022696,2]
[311488600,1705162277994,-500.0,0.00022696,2]
[311488601,1705162278003,-500.0,0.00022696,2]
[311488602,1705162278013,-500.0,0.00022696,2]
[311488603,1705162278021,-500.0,0.00022696,2]
[311488604,1705162278031,-797.38,0.00022696,2]
[311488605,1705162278040,-500.0,0.00022696,2]
[311488606,1705162278049,-500.0,0.00022696,2]
[311488607,1705162278058,-500.0,0.00022696,2]
[311488608,1705162278067,-1781.76,0.00022696,2]
[311488609,1705162278076,-500.0,0.00022696,2]
[311488610,1705162278085,-500.0,0.00022696,2]
[311488611,1705162278095,-500.0,0.00022696,2]
[311488612,1705162278104,-500.0,0.00022696,2]
[311488613,1705162278113,-500.0,0.00022696,2]
[311488614,1705162278123,-500.0,0.00022696,2]
[311488615,1705162278132,-736.84,0.00022696,2]
[311488616,1705162278141,-500.0,0.00022696,2]
[311488617,1705162278151,-667.65,0.00022696,2]
[311488618,1705162278160,-500.0,0.00022696,2]
[311488619,1705162278169,-500.0,0.00022696,2]
[311488620,1705162278179,-500.0,0.00022696,2]
[311488621,1705162278188,-500.0,0.00022696,2]
[311488622,1705162278197,-643.76,0.00022696,2]
[311488623,1705162278207,-500.0,0.00022696,2]
[311488624,1705162278216,-500.0,0.00022696,2]
[311488625,1705162278226,-1188.33,0.00022696,2]
[311488626,1705162278236,-500.0,0.00022696,2]
[311488627,1705162278250,-500.0,0.00022696,2]
[311488628,1705162278259,-783.06,0.00022696,2]
[311488629,1705162278269,-500.0,0.00022696,2]
[311488630,1705162278278,-518.19,0.00022696,2]
[311488631,1705162278288,-1247.15,0.00022696,2]
[311488632,1705162278299,-500.0,0.00022696,2]
[311488633,1705162278309,-500.0,0.00022696,2]
[311488634,1705162278318,-500.0,0.00022696,2]
[311488635,1705162278328,-500.0,0.00022696,2]
[311488636,1705162278337,-1006.71,0.00022696,2]
[311488637,1705162278347,-500.0,0.00022696,2]
[311488638,1705162278357,-500.0,0.00022696,2]
[311488639,1705162278367,-500.0,0.00022696,2]
[311488640,1705162278376,-187.58769606,0.00022696,2]
[311488641,1705162278386,-500.0,0.00022696,2]
[311488642,1705162278395,-500.0,0.00022696,2]
[311488643,1705162278405,-580.29,0.00022696,5]
[311488644,1705162278415,-500.0,0.00022696,2]
[311488645,1705162278425,-500.0,0.00022696,2]
[311488646,1705162278434,-500.0,0.00022696,2]
[311488647,1705162278443,-500.0,0.00022696,2]
[311488648,1705162278453,-500.0,0.00022696,2]
[311488649,1705162278463,-540.5083037,0.00022696,2]
[311488650,1705162278474,-6259.19,0.00022696,2]
[311488651,1705162278485,-500.0,0.00022696,2]
[311488652,1705162278498,-500.0,0.00022696,2]
[311488653,1705162278508,-3091.82,0.00022696,2]
[311488654,1705162278518,-1971.62,0.00022696,2]
[311488655,1705162278527,-500.0,0.00022696,2]
[311488656,1705162278537,-624.92,0.00022696,5]
[311488657,1705162278547,-500.0,0.00022696,2]
[311488658,1705162278558,-500.0,0.00022696,2]
[311488659,1705162278568,-500.0,0.00022696,2]
[311488660,1705162278578,-500.0,0.00022696,2]
[311488661,1705162278587,-500.0,0.00022696,2]
[311488662,1705162278597,-2013.33,0.00022696,2]
[311488663,1705162278606,-500.0,0.00022696,2]
[311488664,1705162278616,-500.0,0.00022696,2]
[311488665,1705162278626,-500.0,0.00022696,2]
[311488666,1705162278635,-500.0,0.00022696,2]
[311488667,1705162278645,-1028.19,0.00022696,2]
[311488668,1705162278655,-500.0,0.00022696,2]
[311488669,1705162278664,-577.15,0.00022696,2]
[311488670,1705162278674,-523.50060565,0.00022696,2]
[311488671,1705162278683,-2403.79,0.00022696,2]
[311488672,1705162278694,-1000.0,0.00022696,2]
[311488673,1705162278703,-500.0,0.00022696,2]
[311488674,1705162278713,-500.0,0.00022696,2]
[311488675,1705162278723,-500.0,0.00022696,2]
[311488676,1705162278733,-500.0,0.00022696,2]
[311488677,1705162278745,-500.0,0.00022696,2]
[311488678,1705162278755,-500.0,0.00022696,2]
[311488679,1705162278765,-500.0,0.00022696,2]
[311488680,1705162278775,-3212.89,0.00022696,2]
[311488681,1705162278785,-612.23559351,0.00022697,2]
[311488682,1705162278794,-511.037094,0.00022697,2]
[311488683,1705162278804,-500.0,0.00022697,2]
[311488684,1705162278813,-382.36740856,0.00022697,2]
[311488685,1705162278823,-500.0,0.00022697,2]
[311488686,1705162278832,-499.189617,0.00022697,2]
[311488687,1705162278842,-500.0,0.00022697,2]
[311488688,1705162278853,-500.0,0.00022697,2]
[311488689,1705162278862,-591.78504234,0.00022697,2]
[311488690,1705162278871,-500.0,0.00022697,2]
[311488691,1705162278880,-500.0,0.00022697,2]
[311488692,1705162278889,-500.0,0.00022697,2]
[311488693,1705162278899,-625.38,0.00022697,2]
[311488694,1705162278909,-500.0,0.00022697,2]
[311488695,1705162278918,-500.0,0.00022697,2]
[311488696,1705162278927,-500.0,0.00022697,2]
[311488697,1705162278937,-500.0,0.00022697,2]
[311488698,1705162278946,-500.0,0.00022697,2]
[311488699,1705162278955,-500.0,0.00022697,2]
[311488700,1705162278965,-500.0,0.00022697,2]
[311488701,1705162278974,-500.0,0.00022697,2]
[311488702,1705162278983,-500.0,0.00022697,2]
[311488703,1705162278994,-500.0,0.00022697,2]
[311488704,1705162279003,-500.0,0.00022697,2]
[311488705,1705162279013,-500.0,0.00022697,2]
[311488706,1705162279022,-500.0,0.00022697,2]
[311488707,1705162279031,-500.0,0.00022697,2]
[311488708,1705162279040,-500.0,0.00022697,2]
[311488709,1705162279050,-500.0,0.00022697,2]
[311488710,1705162279059,-500.0,0.00022697,2]
[311488711,1705162279068,-500.0,0.00022697,2]
[311488712,1705162279078,-500.0,0.00022697,2]
[311488713,1705162279087,-500.0,0.00022697,2]
[311488714,1705162279096,-500.0,0.00022697,2]
[311488715,1705162279105,-500.0,0.00022697,2]
[311488716,1705162279115,-500.0,0.00022697,2]
[311488717,1705162279124,-500.0,0.00022697,2]
[311488718,1705162279133,-500.0,0.00022697,2]
[311488719,1705162279142,-506.83,0.00022697,2]
[311488720,1705162279151,-555.67,0.00022697,2]
[311488721,1705162279161,-500.0,0.00022697,2]
[311488722,1705162279170,-500.0,0.00022697,2]
[311488723,1705162279179,-886.14,0.00022697,2]
[311488724,1705162279188,-500.0,0.00022697,2]
[311488725,1705162279197,-696.62,0.00022697,2]
[311488726,1705162279206,-500.0,0.00022697,2]
[311488727,1705162279215,-500.0,0.00022697,2]
[311488728,1705162279224,-2468.81,0.00022697,2]
[311488729,1705162279233,-500.0,0.00022697,2]
[311488730,1705162279244,-500.0,0.00022697,2]
[311488731,1705162279253,-500.0,0.00022697,2]
[311488732,1705162279262,-500.0,0.00022697,2]
[311488733,1705162279271,-632.9,0.00022697,2]
[311488734,1705162279280,-518.64,0.00022697,2]
[311488735,1705162279289,-539.53,0.00022697,2]
[311488736,1705162279298,-500.0,0.00022697,2]
[311488737,1705162279307,-500.0,0.00022697,2]
[311488738,1705162279316,-500.0,0.00022697,2]
[311488739,1705162279325,-500.0,0.00022697,2]
[311488740,1705162279335,-500.0,0.00022697,2]
[311488741,1705162279344,-500.0,0.00022697,2]
[311488742,1705162279353,-526.32,0.00022697,2]
[311488743,1705162279362,-500.0,0.00022697,2]
[311488744,1705162279371,-500.0,0.00022697,2]
[311488745,1705162279380,-500.0,0.00022697,2]
[311488746,1705162279389,-556.15,0.00022697,2]
[311488747,1705162279398,-500.0,0.00022697,2]
[311488748,1705162279407,-500.0,0.00022697,2]
[311488749,1705162279416,-500.0,0.00022697,2]
[311488750,1705162279426,-500.0,0.00022697,2]
[311488751,1705162279435,-500.0,0.00022697,2]
[311488752,1705162279445,-500.0,0.00022697,2]
[311488753,1705162279454,-500.0,0.00022697,2]
[311488754,1705162279467,-500.0,0.00022697,2]
[311488755,1705162279477,-500.0,0.00022697,2]
[311488756,1705162279486,-783.06,0.00022697,2]
[311488757,1705162279498,-500.0,0.00022697,2]
[311488758,1705162279508,-500.0,0.00022697,2]
[311488759,1705162279517,-500.0,0.00022697,2]
[311488760,1705162279526,-500.0,0.00022697,2]
[311488761,1705162279536,-300.0,0.000227,2]
[311488762,1705162279546,-314.25,0.000227,2]
[311488763,1705162279556,-294.03,0.000227,2]
[311488764,1705162279566,-1322.45526597,0.000227,2]
[311488765,1705162279575,-1322.45526597,0.0002274,2]
[311488766,1705162279708,-1322.45526597,0.0002278,2]
[311488767,1705162279718,-300.0,0.00022789,2]
[311488768,1705162279728,-155.0,0.00022791,2]
[311488769,1705162279737,-18972.87472611,0.00022791,2]
[311488770,1705162279748,-500.0,0.00022791,2]
[311488771,1705162279757,-638.04,0.00022791,2]
[311488772,1705162279766,-1255.66,0.00022791,2]
[311488773,1705162279775,-500.0,0.00022791,2]
[311488774,1705162279785,-500.0,0.00022791,2]
[311488775,1705162279794,-885.46,0.00022791,2]
[311488776,1705162279803,-2323.24,0.00022791,2]
[311488777,1705162279813,-500.0,0.00022791,2]
[311488778,1705162279821,-500.0,0.00022791,2]
[311488779,1705162279831,-500.0,0.00022791,2]
[311488780,1705162279840,-500.0,0.00022791,2]
[311488781,1705162279850,-2652.93,0.00022791,2]
[311488782,1705162279859,-500.0,0.00022791,2]
[311488783,1705162279868,-500.0,0.00022791,2]
[311488784,1705162279877,-3000.18,0.00022791,2]
[311488785,1705162279886,-500.0,0.00022791,2]
[311488786,1705162279896,-1317.05,0.00022791,2]
[311488787,1705162279905,-500.0,0.00022791,2]
[311488788,1705162279914,-877.53,0.00022791,2]
[311488789,1705162279924,-606.73,0.00022791,2]
[311488790,1705162279933,-1037.05,0.00022791,2]
[311488791,1705162279942,-550.81,0.00022791,2]
[311488792,1705162279951,-502.7,0.00022791,2]
[311488793,1705162279961,-1299.53,0.00022791,2]
[311488794,1705162279971,-500.0,0.00022791,2]
[311488795,1705162279980,-3716.57,0.00022791,2]
[311488796,1705162279990,-500.0,0.00022791,2]
[311488797,1705162280000,-500.0,0.00022791,2]
[311488798,1705162280010,-500.0,0.00022791,2]
[311488799,1705162280019,-771.89,0.00022791,2]
[311488800,1705162280028,-1121.92,0.00022791,2]
[311488801,1705162280038,-500.0,0.00022791,2]
[311488802,1705162280047,-500.0,0.00022791,2]
[311488803,1705162280057,-500.0,0.00022791,2]
[311488804,1705162280066,-805.09,0.00022791,2]
[311488805,1705162280076,-500.0,0.00022791,2]
[311488806,1705162280086,-534.39,0.00022791,2]
[311488807,1705162280096,-500.0,0.00022791,2]
[311488808,1705162280105,-741.54,0.00022791,2]
[311488809,1705162280114,-339.83095543,0.00022791,2]
[311488810,1705162280124,-668.8,0.00022791,2]
[311488811,1705162280133,-708.04,0.00022791,2]
[311488812,1705162280142,-500.0,0.00022791,2]
[311488813,1705162280152,-500.0,0.00022791,2]
[311488814,1705162280162,-500.0,0.00022791,2]
[311488815,1705162280171,-500.0,0.00022791,2]
[311488816,1705162280180,-872.1,0.00022791,2]
[311488817,1705162280190,-1426.2366809,0.00022792,2]
[311488818,1705162280199,-3920.35158571,0.00022792,2]
[311488819,1705162280209,-1117.29370242,0.00022792,2]
[311488820,1705162280220,-500.0,0.00022792,2]
[311488821,1705162280256,-500.0,0.00022792,2]
[311488822,1705162280265,-500.0,0.00022792,2]
[311488823,1705162280275,-638.04,0.00022792,2]
[311488824,1705162280284,-638.04,0.00022792,2]
[311488825,1705162280294,-638.04,0.00022792,2]
[311488826,1705162280303,-500.0,0.00022792,2]
[311488827,1705162280312,-500.0,0.00022792,2]
[311488828,1705162280322,-500.0,0.00022792,2]
[311488829,1705162280331,-2323.24,0.00022792,2]
[311488830,1705162280340,-2323.24,0.00022792,2]
[311488831,1705162280350,-2323.24,0.00022792,2]
[311488832,1705162280359,-500.0,0.00022792,2]
[311488833,1705162280368,-500.0,0.00022792,2]
[311488834,1705162280378,-500.0,0.00022792,2]
[311488835,1705162280387,-500.0,0.00022792,2]
[311488836,1705162280397,-500.0,0.00022792,2]
[311488837,1705162280407,-500.0,0.00022792,2]
[311488838,1705162280417,-500.0,0.00022792,2]
[311488839,1705162280427,-500.0,0.00022792,2]
[311488840,1705162280437,-500.0,0.00022792,2]
[311488841,1705162280447,-500.0,0.00022792,2]
[311488842,1705162280457,-500.0,0.00022792,2]
[311488843,1705162280467,-500.0,0.00022792,2]
[311488844,1705162280480,-500.0,0.00022792,2]
[311488845,1705162280490,-606.73,0.00022792,2]
[311488846,1705162280503,-606.73,0.00022792,2]
[311488847,1705162280512,-606.73,0.00022792,2]
[311488848,1705162280522,-550.81,0.00022792,2]
[311488849,1705162280532,-550.81,0.00022792,2]
[311488850,1705162280541,-550.81,0.00022792,2]
[311488851,1705162280552,-500.0,0.00022792,2]
[311488852,1705162280562,-500.0,0.00022792,2]
[311488853,1705162280572,-500.0,0.00022792,2]
[311488854,1705162280582,-500.0,0.00022792,2]
[311488855,1705162280592,-500.0,0.00022792,2]
[311488856,1705162280602,-500.0,0.00022792,2]
[311488857,1705162280611,-500.0,0.00022792,2]
[311488858,1705162280621,-500.0,0.00022792,2]
[311488859,1705162280631,-500.0,0.00022792,2]
[311488860,1705162280641,-1121.92,0.00022792,2]
[311488861,1705162280652,-1121.92,0.00022792,2]
[311488862,1705162280662,-1121.92,0.00022792,2]
[311488863,1705162280672,-5093.19074374,0.00022793,2]
[311488864,1705162280682,-5271.28765605,0.00022793,2]
[311488865,1705162280692,-156.69969264,0.00022793,2]
[311488866,1705162280702,-760.68621098,0.00022793,2]
[311488867,1705162280712,-1204.39705591,0.00022793,2]
[311488868,1705162280722,-419.25423735,0.00022793,2]
[311488869,1705162280732,-546.89815336,0.00022793,2]
[311488870,1705162280742,-394.86615891,0.00022793,2]
[311488871,1705162280755,-155.21161762,0.00022793,2]
[311488872,1705162280765,-500.0,0.00022793,2]
[311488873,1705162280777,-500.0,0.00022793,2]
[311488874,1705162280787,-384.14,0.00022793,2]
[311488875,1705162280796,-500.0,0.00022793,2]
[311488876,1705162280805,-183.62233978,0.00022793,2]
[311488877,1705162280815,-500.0,0.00022793,2]
[311488878,1705162280824,-500.0,0.00022793,2]
[311488879,1705162280833,-541.08214761,0.00022793,2]
[311488880,1705162280843,-500.0,0.00022793,2]
[311488881,1705162280853,-1001.26,0.00022793,2]
[311488882,1705162280863,-500.0,0.00022793,2]
[311488883,1705162280873,-500.0,0.00022793,2]
[311488884,1705162280883,-500.0,0.00022793,2]
[311488885,1705162280893,-500.0,0.00022793,2]
[311488886,1705162280904,-500.0,0.00022793,2]
[311488887,1705162280913,-500.0,0.00022793,2]
[311488888,1705162280923,-1025.95,0.00022793,2]
[311488889,1705162280933,-500.0,0.00022793,2]
[311488890,1705162280943,-576.49,0.00022793,2]
[311488891,1705162280952,-773.02,0.00022793,2]
[311488892,1705162280962,-500.0,0.00022793,2]
[311488893,1705162280971,-500.0,0.00022793,2]
[311488894,1705162280981,-766.7,0.00022793,2]
[311488895,1705162280991,-500.0,0.00022793,2]
[311488896,1705162281002,-500.0,0.00022793,2]
[311488897,1705162281011,-500.0,0.00022793,2]
[311488898,1705162281021,-500.0,0.00022793,2]
[311488899,1705162281030,-1737.56,0.00022793,2]
[311488900,1705162281040,-500.0,0.00022793,2]
[311488901,1705162281050,-500.0,0.00022793,2]
[311488902,1705162281060,-500.0,0.00022793,2]
[311488903,1705162281071,-869.61,0.00022793,2]
[311488904,1705162281081,-1000.0,0.00022793,2]
[311488905,1705162281091,-500.0,0.00022793,2]
[311488906,1705162281101,-797.38,0.00022793,2]
[311488907,1705162281111,-500.0,0.00022793,2]
[311488908,1705162281121,-1781.76,0.00022793,2]
[311488909,1705162281131,-500.0,0.00022793,2]
[311488910,1705162281141,-667.65,0.00022793,2]
[311488911,1705162281151,-210.43711626,0.00022793,2]
[311488912,1705162281161,-500.0,0.00022793,2]
[311488913,1705162281171,-643.76,0.00022793,2]
[311488914,1705162281181,-500.0,0.00022793,2]
[311488915,1705162281191,-527.07292355,0.00022793,2]
[311488916,1705162281201,-1247.15,0.00022793,2]
[311488917,1705162281211,-500.0,0.00022793,2]
[311488918,1705162281220,-1006.71,0.00022793,2]
[311488919,1705162281230,-500.0,0.00022793,2]
[311488920,1705162281240,-500.0,0.00022793,2]
[311488921,1705162281251,-6259.19,0.00022793,2]
[311488922,1705162281260,-500.0,0.00022793,2]
[311488923,1705162281270,-3091.82,0.00022793,2]
[311488924,1705162281279,-624.92,0.00022793,5]
[311488925,1705162281289,-500.0,0.00022793,2]
[311488926,1705162281299,-500.0,0.00022793,2]
[311488927,1705162281308,-220.24778536,0.00022793,2]
[311488928,1705162281317,-452.0415895,0.00022793,2]
[311488929,1705162281326,-500.0,0.00022793,2]
[311488930,1705162281336,-1028.19,0.00022793,2]
[311488931,1705162281346,-500.0,0.00022793,2]
[311488932,1705162281356,-2403.79,0.00022793,2]
[311488933,1705162281366,-1000.0,0.00022793,2]
[311488934,1705162281375,-500.0,0.00022793,2]
[311488935,1705162281384,-410.38615906,0.00022793,2]
[311488936,1705162281394,-500.0,0.00022793,2]
[311488937,1705162281404,-500.0,0.00022793,2]
[311488938,1705162281413,-500.0,0.00022793,2]
[311488939,1705162281423,-1912.10611571,0.00022794,2]
[311488940,1705162281432,-1325.35321689,0.00022794,2]
[311488941,1705162281442,-650.81684476,0.00022794,2]
[311488942,1705162281451,-3870.05935959,0.00022794,2]
[311488943,1705162281462,-203.21708329,0.00022794,2]
[311488944,1705162281472,-500.0,0.00022794,2]
[311488945,1705162281482,-500.0,0.00022794,2]
[311488946,1705162281491,-500.0,0.00022794,2]
[311488947,1705162281502,-500.0,0.00022794,2]
[311488948,1705162281512,-500.0,0.00022794,2]
[311488949,1705162281522,-424.47572865,0.00022794,2]
[311488950,1705162281531,-500.0,0.00022794,2]
[311488951,1705162281541,-500.0,0.00022794,2]
[311488952,1705162281550,-635.78698489,0.00022794,2]
[311488953,1705162281560,-500.0,0.00022794,2]
[311488954,1705162281571,-500.0,0.00022794,2]
[311488955,1705162281580,-1001.26,0.00022794,2]
[311488956,1705162281589,-1001.26,0.00022794,2]
[311488957,1705162281599,-294.62108917,0.00022794,2]
[311488958,1705162281608,-500.0,0.00022794,2]
[311488959,1705162281618,-500.0,0.00022794,2]
[311488960,1705162281627,-500.0,0.00022794,2]
[311488961,1705162281637,-196.12310054,0.00022794,2]
[311488962,1705162281647,-500.0,0.00022794,2]
[311488963,1705162281656,-500.0,0.00022794,2]
[311488964,1705162281666,-500.0,0.00022794,2]
[311488965,1705162281676,-291.38648459,0.00022794,2]
[311488966,1705162281685,-500.0,0.00022794,2]
[311488967,1705162281694,-500.0,0.00022794,2]
[311488968,1705162281704,-1025.95,0.00022794,2]
[311488969,1705162281713,-1025.95,0.00022794,2]
[311488970,1705162281723,-500.0,0.00022794,2]
[311488971,1705162281732,-638.04,0.00022794,2]
[311488972,1705162281741,-1255.66,0.00022794,2]
[311488973,1705162281753,-1255.66,0.00022794,2]
[311488974,1705162281762,-1255.66,0.00022794,2]
[311488975,1705162281771,-500.0,0.00022794,2]
[311488976,1705162281858,-500.0,0.00022794,2]
[311488977,1705162281868,-530.39974155,0.00022794,2]
[311488978,1705162281877,-500.0,0.00022794,2]
[311488979,1705162281887,-190.16989312,0.00022794,2]
[311488980,1705162281896,-340.56318748,0.00022794,2]
[311488981,1705162281905,-576.49,0.00022794,2]
[311488982,1705162281915,-500.0,0.00022794,2]
[311488983,1705162281924,-576.49,0.00022794,2]
[311488984,1705162281934,-500.0,0.00022794,2]
[311488985,1705162281943,-885.46,0.00022794,2]
[311488986,1705162281953,-885.46,0.00022794,2]
[311488987,1705162281962,-885.46,0.00022794,2]
[311488988,1705162281972,-2323.24,0.00022794,2]
[311488989,1705162281982,-500.0,0.00022794,2]
[311488990,1705162281991,-159.88353002,0.00022794,2]
[311488991,1705162282002,-500.0,0.00022794,2]
[311488992,1705162282012,-773.02,0.00022794,2]
[311488993,1705162282022,-500.0,0.00022794,2]
[311488994,1705162282032,-500.0,0.00022794,2]
[311488995,1705162282041,-773.02,0.00022794,2]
[311488996,1705162282051,-500.0,0.00022794,2]
[311488997,1705162282061,-252.52046808,0.00022794,2]
[311488998,1705162282070,-500.0,0.00022794,2]
[311488999,1705162282080,-590.83127058,0.00022794,2]
[311489000,1705162282090,-2652.93,0.00022794,2]
[311489001,1705162282099,-2652.93,0.00022794,2]
[311489002,1705162282108,-389.34130939,0.00022794,2]
[311489003,1705162282117,-2652.93,0.00022794,2]
[311489004,1705162282127,-766.7,0.00022794,2]
[311489005,1705162282136,-766.7,0.00022794,2]
[311489006,1705162282145,-500.0,0.00022794,2]
[311489007,1705162282155,-353.74013368,0.00022794,2]
[311489008,1705162282167,-3124.27,0.00022794,2]
[311489009,1705162282176,-3124.27,0.00022794,2]
[311489010,1705162282185,-500.0,0.00022794,2]
[311489011,1705162282195,-500.0,0.00022794,2]
[311489012,1705162282205,-500.0,0.00022794,2]
[311489013,1705162282214,-3000.18,0.00022794,2]
[311489014,1705162282223,-3000.18,0.00022794,2]
[311489015,1705162282233,-375.18598773,0.00022794,2]
[311489016,1705162282242,-3000.18,0.00022794,2]
[311489017,1705162282253,-500.0,0.00022794,2]
[311489018,1705162282263,-500.0,0.00022794,2]
[311489019,1705162282272,-1025.77,0.00022794,2]
[311489020,1705162282281,-472.01924322,0.00022794,2]
[311489021,1705162282290,-500.0,0.00022794,2]
[311489022,1705162282299,-500.0,0.00022794,2]
[311489023,1705162282309,-500.0,0.00022794,2]
[311489024,1705162282318,-1737.56,0.00022794,2]
[311489025,1705162282328,-1737.56,0.00022794,2]
[311489026,1705162282347,-1317.05,0.00022794,2]
[311489027,1705162282356,-1317.05,0.00022794,2]
[311489028,1705162282366,-1317.05,0.00022794,2]
[311489029,1705162282375,-500.0,0.00022794,2]
[311489030,1705162282384,-500.0,0.00022794,2]
[311489031,1705162282393,-1025.77,0.00022794,2]
[311489032,1705162282403,-530.08699509,0.00022794,2]
[311489033,1705162282413,-877.53,0.00022794,2]
[311489034,1705162282422,-877.53,0.00022794,2]
[311489035,1705162282433,-877.53,0.00022794,2]
[311489036,1705162282443,-606.73,0.00022794,2]
[311489037,1705162282452,-1037.05,0.00022794,2]
[311489038,1705162282463,-1037.05,0.00022794,2]
[311489039,1705162282473,-500.0,0.00022794,2]
[311489040,1705162282484,-1037.05,0.00022794,2]
[311489041,1705162282495,-500.0,0.00022794,2]
[311489042,1705162282505,-639.24,0.00022794,2]
[311489043,1705162282514,-639.24,0.00022794,2]
[311489044,1705162282524,-500.0,0.00022794,2]
[311489045,1705162282534,-647.95,0.00022794,2]
[311489046,1705162282543,-550.81,0.00022794,2]
[311489047,1705162282553,-502.7,0.00022794,2]
[311489048,1705162282563,-502.7,0.00022794,2]
[311489049,1705162282572,-502.7,0.00022794,2]
[311489050,1705162282582,-1299.53,0.00022794,2]
[311489051,1705162282591,-1299.53,0.00022794,2]
[311489052,1705162282600,-1299.53,0.00022794,2]
[311489053,1705162282611,-869.61,0.00022794,2]
[311489054,1705162282620,-869.61,0.00022794,2]
[311489055,1705162282631,-1000.0,0.00022794,2]
[311489056,1705162282640,-1000.0,0.00022794,2]
[311489057,1705162282650,-500.0,0.00022794,2]
[311489058,1705162282660,-500.0,0.00022794,2]
[311489059,1705162282670,-500.0,0.00022794,2]
[311489060,1705162282685,-500.0,0.00022794,2]
[311489061,1705162282695,-500.0,0.00022794,2]
[311489062,1705162282705,-797.38,0.00022794,2]
[311489063,1705162282715,-3716.57,0.00022794,2]
[311489064,1705162282725,-500.0,0.00022794,2]
[311489065,1705162282734,-500.0,0.00022794,2]